{"text_format":"3","workbook":"xlsx","n_sheets":1,"sheets":["Proposta"],"not_rendered":{"defined_names":20},"read":"whole","date_system":"1900"}

{"sheet":"Proposta","index":0,"n_rows":41,"n_cols":8,"rows_kept":41,"merged":[[1,1,3,1],[1,4,1,7],[2,4,2,7],[3,5,3,7],[33,4,33,5],[34,4,36,5],[37,4,37,5],[38,4,38,5],[39,4,39,5],[40,4,40,5]]}
[]
[null,"LOGO AZIENDALE QUI",null,null,"PROPOSTA DI COSTRUZIONE"]
[{"$nulls":4},"La casa ricondizionata | 89 Pacific Ave, San Francisco, CA 78901"]
[{"$nulls":4},"TEL (123) 456-7890","FAX (123) 456-7891"]
[]
[null,"CLIENTE",null,null,"QUANTITÀ","DESCRIZIONE","PREZZO UNITARIO","IMPORTO"]
[null,"Maria Sullivan",null,null,10,"Cartongesso",{"v":165,"d":"€ 165.00"},{"$f":"IFERROR(LineItems[[#This Row],[QUANTITÀ]]*LineItems[[#This Row],[PREZZO UNITARIO]], \"\")","v":{"v":1650,"d":"€ 1,650.00"}}]
[null,"N. STIMA",null,null,21,"Compensato",{"v":40,"d":"€ 40.00"},{"$f":"IFERROR(LineItems[[#This Row],[QUANTITÀ]]*LineItems[[#This Row],[PREZZO UNITARIO]], \"\")","v":{"v":840,"d":"€ 840.00"}}]
[null,"C-1234",null,null,5,"Unioni in legno",{"v":10.5,"d":"€ 10.50"},{"$f":"IFERROR(LineItems[[#This Row],[QUANTITÀ]]*LineItems[[#This Row],[PREZZO UNITARIO]], \"\")","v":{"v":52.5,"d":"€ 52.50"}}]
[null,"DATA",null,null,164,"Viti da 10 pollici",{"v":2.75,"d":"€ 2.75"},{"$f":"IFERROR(LineItems[[#This Row],[QUANTITÀ]]*LineItems[[#This Row],[PREZZO UNITARIO]], \"\")","v":{"v":451,"d":"€ 451.00"}}]
[null,{"$f":"TODAY()","v":"2023-03-23"},null,null,6,"Soffione doccia",{"v":12,"d":"€ 12.00"},{"$f":"IFERROR(LineItems[[#This Row],[QUANTITÀ]]*LineItems[[#This Row],[PREZZO UNITARIO]], \"\")","v":{"v":72,"d":"€ 72.00"}}]
[null,"INDIRIZZO",null,null,18,"Piastrelle doccia",{"v":5.5,"d":"€ 5.50"},{"$f":"IFERROR(LineItems[[#This Row],[QUANTITÀ]]*LineItems[[#This Row],[PREZZO UNITARIO]], \"\")","v":{"v":99,"d":"€ 99.00"}}]
[null,"123 Avenue A",null,null,1,"Specchio sopra il lavello",{"v":25,"d":"€ 25.00"},{"$f":"IFERROR(LineItems[[#This Row],[QUANTITÀ]]*LineItems[[#This Row],[PREZZO UNITARIO]], \"\")","v":{"v":25,"d":"€ 25.00"}}]
[null,"CITTÀ/STATO/CAP",{"$nulls":5},{"$f":"IFERROR(LineItems[[#This Row],[QUANTITÀ]]*LineItems[[#This Row],[PREZZO UNITARIO]], \"\")","v":{"v":0,"d":"€ 0.00"}}]
[null,"Burbank, CA 54321",{"$nulls":5},{"$f":"IFERROR(LineItems[[#This Row],[QUANTITÀ]]*LineItems[[#This Row],[PREZZO UNITARIO]], \"\")","v":{"v":0,"d":"€ 0.00"}}]
[null,"TELEFONO",{"$nulls":5},{"$f":"IFERROR(LineItems[[#This Row],[QUANTITÀ]]*LineItems[[#This Row],[PREZZO UNITARIO]], \"\")","v":{"v":0,"d":"€ 0.00"}}]
[null,"(502) 555-0123",{"$nulls":5},{"$f":"IFERROR(LineItems[[#This Row],[QUANTITÀ]]*LineItems[[#This Row],[PREZZO UNITARIO]], \"\")","v":{"v":0,"d":"€ 0.00"}}]
[null,"POSTA ELETTRONICA",{"$nulls":5},{"$f":"IFERROR(LineItems[[#This Row],[QUANTITÀ]]*LineItems[[#This Row],[PREZZO UNITARIO]], \"\")","v":{"v":0,"d":"€ 0.00"}}]
[null,"maria@contoso.com",{"$nulls":5},{"$f":"IFERROR(LineItems[[#This Row],[QUANTITÀ]]*LineItems[[#This Row],[PREZZO UNITARIO]], \"\")","v":{"v":0,"d":"€ 0.00"}}]
[{"$nulls":7},{"$f":"IFERROR(LineItems[[#This Row],[QUANTITÀ]]*LineItems[[#This Row],[PREZZO UNITARIO]], \"\")","v":{"v":0,"d":"€ 0.00"}}]
[{"$nulls":7},{"$f":"IFERROR(LineItems[[#This Row],[QUANTITÀ]]*LineItems[[#This Row],[PREZZO UNITARIO]], \"\")","v":{"v":0,"d":"€ 0.00"}}]
[null,"VENDITORE",{"$nulls":5},{"$f":"IFERROR(LineItems[[#This Row],[QUANTITÀ]]*LineItems[[#This Row],[PREZZO UNITARIO]], \"\")","v":{"v":0,"d":"€ 0.00"}}]
[null,"Josko Lucic",{"$nulls":5},{"$f":"IFERROR(LineItems[[#This Row],[QUANTITÀ]]*LineItems[[#This Row],[PREZZO UNITARIO]], \"\")","v":{"v":0,"d":"€ 0.00"}}]
[null,"PROGETTO",{"$nulls":5},{"$f":"IFERROR(LineItems[[#This Row],[QUANTITÀ]]*LineItems[[#This Row],[PREZZO UNITARIO]], \"\")","v":{"v":0,"d":"€ 0.00"}}]
[null,"Ristrutturazione del bagno",{"$nulls":5},{"$f":"IFERROR(LineItems[[#This Row],[QUANTITÀ]]*LineItems[[#This Row],[PREZZO UNITARIO]], \"\")","v":{"v":0,"d":"€ 0.00"}}]
[null,"PREPARATO DA:",{"$nulls":5},{"$f":"IFERROR(LineItems[[#This Row],[QUANTITÀ]]*LineItems[[#This Row],[PREZZO UNITARIO]], \"\")","v":{"v":0,"d":"€ 0.00"}}]
[null,"Josko Lucic",{"$nulls":5},{"$f":"IFERROR(LineItems[[#This Row],[QUANTITÀ]]*LineItems[[#This Row],[PREZZO UNITARIO]], \"\")","v":{"v":0,"d":"€ 0.00"}}]
[{"$nulls":7},{"$f":"IFERROR(LineItems[[#This Row],[QUANTITÀ]]*LineItems[[#This Row],[PREZZO UNITARIO]], \"\")","v":{"v":0,"d":"€ 0.00"}}]
[{"$nulls":7},{"$f":"IFERROR(LineItems[[#This Row],[QUANTITÀ]]*LineItems[[#This Row],[PREZZO UNITARIO]], \"\")","v":{"v":0,"d":"€ 0.00"}}]
[null,"ATTENZIONE",{"$nulls":5},{"$f":"IFERROR(LineItems[[#This Row],[QUANTITÀ]]*LineItems[[#This Row],[PREZZO UNITARIO]], \"\")","v":{"v":0,"d":"€ 0.00"}}]
[null,"Maria Sullivan",{"$nulls":5},{"$f":"IFERROR(LineItems[[#This Row],[QUANTITÀ]]*LineItems[[#This Row],[PREZZO UNITARIO]], \"\")","v":{"v":0,"d":"€ 0.00"}}]
[null,"TERMINI DI PAGAMENTO",{"$nulls":5},{"$f":"IFERROR(LineItems[[#This Row],[QUANTITÀ]]*LineItems[[#This Row],[PREZZO UNITARIO]], \"\")","v":{"v":0,"d":"€ 0.00"}}]
[null,"Netto 30",{"$nulls":4},"SUBTOTALE",{"$f":"SUBTOTAL(109,LineItems[IMPORTO])","v":{"v":3189.5,"d":"€ 3,189.50"}}]
[null,"SCADENZA",null,null,"LA PROPOSTA INCLUDE LE CONDIZIONI INDICATE:",null,"ALIQUOTA IVA ",{"v":0.0775,"d":"7.75%"}]
[null,{"$f":"TODAY()+30","v":"2023-04-22"},null,null,"Immettere le condizioni qui",null,"IVA ",{"$f":"IFERROR(Subtotale*TaxRate, \"\")","v":{"v":247.18625,"d":"€ 247.19"}}]
[{"$nulls":6},"ALTRO "]
[{"$nulls":6},"TOTALE ",{"$f":"IFERROR(Subtotale+H35+Altro, \"\")","v":{"v":3436.68625,"d":"€ 3,436.69"}}]
[]
[{"$nulls":4},"FIRMA DI SEGUITO PER ACCETTARE IL PREVENTIVO:"]
[]
[{"$nulls":4},"RAPPRESENTANTE AUTORIZZATO",null,null,"DATA"]